fUST/lending_fUST_20250609
["ID","MTS","AMOUNT","RATE_DAILY","PERIOD"]
[365041447,1749421843062,-440.0,0.0002,2]
[365041448,1749421843071,-1549.85,0.0002,2]
[365041449,1749421843081,-440.0,0.0002,2]
[365041450,1749421843091,-440.0,0.0002,2]
[365041451,1749421843101,-652.19,0.0002,2]
[365041452,1749421843111,-580.9,0.0002,2]
[365041453,1749421843121,-440.0,0.0002,2]
[365041454,1749421843131,-1359.84,0.0002,2]
[365041455,1749421843142,-440.0,0.0002,2]
[365041456,1749421843152,-440.0,0.0002,2]
[365041457,1749421843162,-310.0,0.0002,2]
[365041458,1749421843172,-440.0,0.0002,2]
[365041459,1749421843182,-609.24,0.0002,2]
[365041460,1749421843192,-747.48,0.0002,2]
[365041461,1749421843202,-440.0,0.0002,2]
[365041462,1749421843212,-440.0,0.0002,2]
[365041463,1749421843222,-192.262,0.0002013,2]
[365041464,1749421843231,-346.7516383,0.00020143,2]
[365041465,1749421843242,-423.98131849,0.00020143,2]
[365041466,1749421843252,-229.60437222,0.00020143,2]
[365041467,1749421843261,-834.62475315,0.00020146,2]
[365041468,1749421843271,-327.405027,0.00020187,2]
[365041469,1749421843281,-380.0,0.00020273,2]
[365041470,1749421843292,-440.0,0.00020273,2]
[365041471,1749421843302,-440.0,0.00020273,2]
[365041472,1749421843312,-477.18906685,0.00020273,2]
[365041473,1749421843322,-440.0,0.00020273,2]
[365041474,1749421843332,-440.0,0.00020273,2]
[365041475,1749421843345,-440.0,0.00020273,2]
[365041476,1749421843356,-726.96,0.00020273,2]
[365041477,1749421843366,-440.0,0.00020273,2]
[365041478,1749421843376,-440.0,0.00020273,2]
[365041479,1749421843387,-440.0,0.00020273,2]
[365041480,1749421843398,-440.0,0.00020273,2]
[365041481,1749421843408,-440.0,0.00020273,2]
[365041482,1749421843419,-1400.83,0.00020273,2]
[365041483,1749421843430,-440.0,0.00020273,2]
[365041484,1749421843440,-440.0,0.00020273,2]
[365041485,1749421843449,-591.34,0.00020273,2]
[365041486,1749421843459,-972.03,0.00020273,2]
[365041487,1749421843469,-440.0,0.00020273,2]
[365041488,1749421843479,-440.0,0.00020273,2]
[365041489,1749421843489,-440.0,0.00020273,2]
[365041490,1749421843500,-440.0,0.00020273,2]
[365041491,1749421843510,-430.0,0.00020273,2]
[365041492,1749421843520,-440.0,0.00020273,2]
[365041493,1749421843530,-430.0,0.00020273,2]
[365041494,1749421843542,-676.67,0.00020273,2]
[365041495,1749421843551,-334.2149316,0.00020273,2]
[365041496,1749421843680,-105.7850684,0.00020273,2]
[365041497,1749421843690,-210.8780847,0.00020273,2]
[365041498,1749421843704,-229.1219153,0.00020273,2]
[365041499,1749421843713,-928.14,0.00020273,2]
[365041500,1749421843722,-440.0,0.00020273,2]
[365041501,1749421843774,-440.0,0.00020273,2]
[365041502,1749421843785,-440.0,0.00020273,2]
[365041503,1749421843797,-448.53351443,0.00020273,2]
[365041504,1749421843813,-440.0,0.00019452,2]
[365041505,1749421843823,-607.36648557,0.00020273,2]
[365041506,1749421843833,-921.11,0.00020273,2]
[365041507,1749421843842,-440.0,0.00020273,2]
[365041508,1749421843852,-440.0,0.00020273,2]
[365041509,1749421843861,-440.0,0.00020273,2]
[365041510,1749421843871,-1549.85,0.00020273,2]
[365041511,1749421843881,-440.0,0.00020273,2]
[365041512,1749421843891,-440.0,0.00020273,2]
[365041513,1749421843901,-652.19,0.00020273,2]
[365041514,1749421843911,-580.9,0.00020273,2]
[365041515,1749421843920,-440.0,0.00020273,2]
[365041516,1749421843930,-1359.84,0.00020273,2]
[365041517,1749421843940,-440.0,0.00020273,2]
[365041518,1749421843950,-440.0,0.00020273,2]
[365041519,1749421843960,-440.0,0.00020273,2]
[365041520,1749421843969,-609.24,0.00020273,2]
[365041521,1749421843978,-747.48,0.00020273,2]
[365041522,1749421843988,-440.0,0.00020273,2]
[365041523,1749421843998,-440.0,0.00020273,2]
[365041524,1749421844007,-175.42617099,0.00020427,2]
[365041525,1749421844017,-500.0,0.00020546,2]
[365041526,1749421844026,-440.0,0.00020547,2]
[365041527,1749421844035,-440.0,0.00020547,2]
[365041528,1749421844046,-190.0,0.00020547,2]
[365041529,1749421844055,-440.0,0.00020547,2]
[365041530,1749421844065,-440.0,0.00020547,2]
[365041531,1749421844075,-726.96,0.00020547,2]
[365041532,1749421844084,-440.0,0.00020547,2]
[365041533,1749421844095,-440.0,0.00020547,2]
[365041534,1749421844104,-440.0,0.00020547,2]
[365041535,1749421844114,-179.52,0.00020547,2]
[365041536,1749421844124,-1400.83,0.00020547,2]
[365041537,1749421844133,-440.0,0.00020547,2]
[365041538,1749421844143,-591.34,0.00020547,2]
[365041539,1749421844152,-972.03,0.00020547,2]
[365041540,1749421844162,-440.0,0.00020547,2]
[365041541,1749421844171,-440.0,0.00020547,2]
[365041542,1749421844181,-440.0,0.00020547,2]
[365041543,1749421844191,-440.0,0.00020547,2]
[365041544,1749421844201,-440.0,0.00020547,2]
[365041545,1749421844211,-676.67,0.00020547,2]
[365041546,1749421844221,-440.0,0.00020547,2]
[365041547,1749421844230,-440.0,0.00020547,2]
[365041548,1749421844239,-928.14,0.00020547,2]
[365041549,1749421844249,-440.0,0.00020547,2]
[365041550,1749421844260,-440.0,0.00020547,2]
[365041551,1749421844269,-440.0,0.00020547,2]
[365041552,1749421844279,-1055.9,0.00020547,2]
[365041553,1749421844290,-921.11,0.00020547,2]
[365041554,1749421844299,-440.0,0.00020547,2]
[365041555,1749421844310,-440.0,0.00020547,2]
[365041556,1749421844320,-440.0,0.00020547,2]
[365041557,1749421844330,-1549.85,0.00020547,2]
[365041558,1749421844342,-440.0,0.00020547,2]
[365041559,1749421844352,-440.0,0.00020547,2]
[365041560,1749421844362,-652.19,0.00020547,2]
[365041561,1749421844371,-580.9,0.00020547,2]
[365041562,1749421844382,-440.0,0.00020547,2]
[365041563,1749421844392,-1359.84,0.00020547,2]
[365041564,1749421844403,-440.0,0.00020547,2]
[365041565,1749421844414,-440.0,0.00020547,2]
[365041566,1749421844424,-440.0,0.00020547,2]
[365041567,1749421844434,-609.24,0.00020547,2]
[365041568,1749421844444,-747.48,0.00020547,2]
[365041569,1749421844454,-440.0,0.00020547,2]
[365041570,1749421844464,-440.0,0.00020547,2]
[365041571,1749421844474,-3176.0,0.00020548,2]
[365041572,1749421844484,-3176.0,0.00020548,2]
[365041573,1749421844494,-2399.69734344,0.00020548,2]
[365041574,1749421844507,-388.285321,0.00020548,2]
[365041575,1749421844625,-440.0,0.00019178,2]
[365041576,1749421844636,-440.0,0.00019452,2]
[365041577,1749421844646,-440.0,0.00019726,2]
[365041578,1749421844656,-437.72,0.00019726,2]
[365041579,1749421844666,-412.27280839,0.0002,2]
[365041580,1749421844676,-388.01733556,0.00020548,2]
[365041581,1749421844686,-140.48869326,0.00020548,2]
[365041582,1749421844699,-359.51130674,0.00020548,2]
[365041583,1749421844710,-500.0,0.00020548,2]
[365041584,1749421844720,-500.0,0.00020548,2]
[365041585,1749421844730,-500.0,0.00020548,2]
[365041586,1749421844740,-524.89069769,0.00020548,2]
[365041587,1749421844750,-737.78559367,0.00020561,2]
[365041588,1749421844762,-125.46440633,0.00020561,2]
[365041589,1749421844773,-419.27,0.000206,2]
[365041590,1749421844782,-983.61,0.000206,2]
[365041591,1749421844794,-900.0,0.00020765,2]
[365041592,1749421844804,-440.0,0.00020821,2]
[365041593,1749421844814,-440.0,0.00020821,2]
[365041594,1749421844825,-726.96,0.00020821,2]
[365041595,1749421844836,-440.0,0.00020821,2]
[365041596,1749421844847,-440.0,0.00020821,2]
[365041597,1749421844856,-1400.83,0.00020821,2]
[365041598,1749421844866,-440.0,0.00020821,2]
[365041599,1749421844876,-591.34,0.00020821,2]
[365041600,1749421844886,-972.03,0.00020821,2]
[365041601,1749421844896,-440.0,0.00020821,2]
[365041602,1749421844906,-440.0,0.00020821,2]
[365041603,1749421844917,-440.0,0.00020821,2]
[365041604,1749421844927,-440.0,0.00020821,2]
[365041605,1749421844937,-440.0,0.00020821,2]
[365041606,1749421844947,-676.67,0.00020821,2]
[365041607,1749421844958,-440.0,0.00020821,2]
[365041608,1749421844968,-928.14,0.00020821,2]
[365041609,1749421844978,-440.0,0.00020821,2]
[365041610,1749421844988,-440.0,0.00020821,2]
[365041611,1749421844998,-440.0,0.00020821,2]
[365041612,1749421845008,-1055.9,0.00020821,2]
[365041613,1749421845019,-921.11,0.00020821,2]
[365041614,1749421845029,-440.0,0.00020821,2]
[365041615,1749421845040,-440.0,0.00020821,2]
[365041616,1749421845050,-93.77059367,0.00020821,2]
[365041617,1749421845063,-346.22940633,0.00020821,2]
[365041618,1749421845073,-1549.85,0.00020821,2]
[365041619,1749421845084,-440.0,0.00020821,2]
[365041620,1749421845094,-440.0,0.00020821,2]
[365041621,1749421845104,-652.19,0.00020821,2]
[365041622,1749421845114,-580.9,0.00020821,2]
[365041623,1749421845125,-440.0,0.00020821,2]
[365041624,1749421845135,-1359.84,0.00020821,2]
[365041625,1749421845146,-440.0,0.00020821,2]
[365041626,1749421845156,-440.0,0.00020821,2]
[365041627,1749421845167,-440.0,0.00020821,2]
[365041628,1749421845178,-609.24,0.00020821,2]
[365041629,1749421845188,-747.48,0.00020821,2]
[365041630,1749421845199,-213.52,0.00020821,2]
[365041631,1749421845210,-440.0,0.00020821,2]
[365041632,1749421845220,-420.0,0.00020893,2]
[365041633,1749421845231,-420.0,0.00020893,2]
[365041634,1749421845242,-500.0,0.00021033,2]
[365041635,1749421845253,-500.0,0.00021037,2]
[365041636,1749421845263,-440.0,0.00021095,2]
[365041637,1749421845274,-726.96,0.00021095,2]
[365041638,1749421845285,-440.0,0.00021095,2]
[365041639,1749421845298,-440.0,0.00021095,2]
[365041640,1749421845308,-1400.83,0.00021095,2]
[365041641,1749421845318,-440.0,0.00021095,2]
[365041642,1749421845328,-591.34,0.00021095,2]
[365041643,1749421845338,-972.03,0.00021095,2]
[365041644,1749421845352,-477.69,0.00021095,2]
[365041645,1749421845362,-440.0,0.00021095,2]
[365041646,1749421845373,-440.0,0.00021095,2]
[365041647,1749421845384,-440.0,0.00021095,2]
[365041648,1749421845394,-440.0,0.00021095,2]
[365041649,1749421845405,-676.67,0.00021095,2]
[365041650,1749421845415,-440.0,0.00021095,2]
[365041651,1749421845427,-928.14,0.00021095,2]
[365041652,1749421845436,-440.0,0.00021095,2]
[365041653,1749421845448,-440.0,0.00021095,2]
[365041654,1749421845458,-1055.9,0.00021095,2]
[365041655,1749421845469,-921.11,0.00021095,2]
[365041656,1749421845480,-440.0,0.00021095,2]
[365041657,1749421845491,-440.0,0.00021095,2]
[365041658,1749421845501,-272.64436084,0.00021095,2]
[365041659,1749421845512,-1549.85,0.00021095,2]
[365041661,1749421845522,-440.0,0.00021095,2]
[365041663,1749421845533,-652.19,0.00021095,2]
[365041664,1749421845543,-580.9,0.00021095,2]
[365041665,1749421845554,-440.0,0.00021095,2]
[365041666,1749421845564,-1359.84,0.00021095,2]
[365041667,1749421845575,-440.0,0.00021095,2]
[365041668,1749421845585,-440.0,0.00021095,2]
[365041669,1749421845595,-609.24,0.00021095,2]
[365041670,1749421845606,-747.48,0.00021095,2]
[365041671,1749421845616,-570.7,0.00021095,2]
[365041672,1749421845626,-151.0,0.0002135,2]
[365041673,1749421845637,-151.0,0.0002135,2]
[365041674,1749421845647,-5000.0,0.0002135,2]
[365041675,1749421845658,-236.72530795,0.0002135,2]
[365041676,1749421845669,-500.0,0.0002135,2]
[365041677,1749421845679,-800.0,0.0002135,2]
[365041678,1749421845690,-500.0,0.0002135,2]
[365041679,1749421845701,-800.0,0.0002135,2]
[365041680,1749421845712,-800.0,0.0002135,2]
[365041681,1749421845722,-500.0,0.0002135,2]
[365041682,1749421845732,-500.0,0.0002135,2]
[365041683,1749421845743,-800.0,0.0002135,2]
[365041684,1749421845753,-800.0,0.0002135,2]
[365041686,1749421845763,-800.0,0.0002135,2]
[365041688,1749421845773,-800.0,0.0002135,2]
[365041690,1749421845783,-400.0,0.0002135,2]
[365041691,1749421845795,-207.4,0.0002135,2]
[365041692,1749421845806,-484.32,0.00021358,10]
[365041693,1749421845816,-534.05,0.00021358,10]
[365041695,1749421845826,-500.0,0.00021368,2]
[365041696,1749421845836,-440.0,0.00021369,2]
[365041697,1749421845846,-726.96,0.00021369,2]
[365041698,1749421845857,-440.0,0.00021369,2]
[365041699,1749421845868,-440.0,0.00021369,2]
[365041700,1749421845878,-1400.83,0.00021369,2]
[365041701,1749421845888,-440.0,0.00021369,2]
[365041702,1749421845898,-591.34,0.00021369,2]
[365041703,1749421845908,-972.03,0.00021369,2]
[365041704,1749421845920,-440.0,0.00021369,2]
[365041705,1749421845931,-440.0,0.00021369,2]
[365041706,1749421845942,-171.61,0.00021369,2]
[365041707,1749421845953,-676.67,0.00021369,2]
[365041708,1749421845964,-928.14,0.00021369,2]
[365041709,1749421845975,-440.0,0.00021369,2]
[365041710,1749421845986,-1055.9,0.00021369,2]
[365041711,1749421845998,-921.11,0.00021369,2]
[365041712,1749421846008,-440.0,0.00021369,2]
[365041714,1749421846019,-440.0,0.00021369,2]
[365041716,1749421846030,-1549.85,0.00021369,2]
[365041718,1749421846044,-440.0,0.00021369,2]
[365041721,1749421846055,-652.19,0.00021369,2]
[365041723,1749421846067,-580.9,0.00021369,2]
[365041725,1749421846077,-440.0,0.00021369,2]
[365041727,1749421846088,-1359.84,0.00021369,2]
[365041729,1749421846099,-440.0,0.00021369,2]
[365041731,1749421846110,-440.0,0.00021369,2]
[365041733,1749421846120,-609.24,0.00021369,2]
[365041735,1749421846131,-747.48,0.00021369,2]
[365041737,1749421846141,-1035.9,0.00021383,2]
[365041739,1749421846152,-503.01712647,0.00021581,2]
[365041742,1749421846162,-440.0,0.00021643,2]
[365041744,1749421846172,-726.96,0.00021643,2]
[365041746,1749421846183,-1400.83,0.00021643,2]
[365041748,1749421846193,-440.0,0.00021643,2]
[365041750,1749421846207,-591.34,0.00021643,2]
[365041752,1749421846217,-972.03,0.00021643,2]
[365041754,1749421846228,-440.0,0.00021643,2]
[365041756,1749421846238,-676.67,0.00021643,2]
[365041759,1749421846249,-928.14,0.00021643,2]
[365041761,1749421846259,-440.0,0.00021643,2]
[365041763,1749421846269,-1055.9,0.00021643,2]
[365041765,1749421846280,-921.11,0.00021643,2]
[365041767,1749421846290,-440.0,0.00021643,2]
[365041769,1749421846303,-1549.85,0.00021643,2]
[365041771,1749421846313,-532.6697347,0.00021643,2]
[365041774,1749421846323,-652.19,0.00021643,2]
[365041776,1749421846333,-580.9,0.00021643,2]
[365041778,1749421846346,-440.0,0.00021643,2]
[365041780,1749421846356,-1359.84,0.00021643,2]
[365041782,1749421846368,-440.0,0.00021643,2]
[365041784,1749421846378,-440.0,0.00021643,2]
[365041786,1749421846390,-609.24,0.00021643,2]
[365041788,1749421846400,-747.48,0.00021643,2]
[365041790,1749421846411,-150.0,0.0002168,2]
[365041806,1749421846552,-500.0,0.0002175,2]
[365041808,1749421846563,-500.0,0.0002175,2]
[365041810,1749421846574,-175.42617099,0.00021775,2]
[365041812,1749421846583,-900.0,0.00021861,2]
[365041814,1749421846592,-440.0,0.00021917,2]
[365041816,1749421846602,-726.96,0.00021917,2]
[365041818,1749421846612,-1400.83,0.00021917,2]
[365041820,1749421846621,-440.0,0.00021917,2]
[365041822,1749421846631,-591.34,0.00021917,2]
[365041824,1749421846641,-972.03,0.00021917,2]
[365041827,1749421846651,-440.0,0.00021917,2]
[365041829,1749421846661,-676.67,0.00021917,2]
[365041831,1749421846671,-928.14,0.00021917,2]
[365041833,1749421846680,-440.0,0.00021917,2]
[365041835,1749421846690,-1055.9,0.00021917,2]
[365041837,1749421846699,-921.11,0.00021917,2]
[365041839,1749421846709,-440.0,0.00021917,2]
[365041841,1749421846720,-1549.85,0.00021917,2]
[365041843,1749421846730,-652.19,0.00021917,2]
[365041845,1749421846739,-580.9,0.00021917,2]
[365041847,1749421846750,-440.0,0.00021917,2]
[365041849,1749421846759,-1359.84,0.00021917,2]
[365041851,1749421846769,-440.0,0.00021917,2]
[365041853,1749421846779,-609.24,0.00021917,2]
[365041855,1749421846789,-747.48,0.00021917,2]
[365041857,1749421846801,-975.75341128,0.00021918,2]
[365041859,1749421846810,-150.0,0.00022,2]
[365041861,1749421846820,-66529.22,0.00022,7]
[365041863,1749421846830,-171.0,0.00022,2]
[365041866,1749421846840,-21453.5015302,0.00022,2]
[365041868,1749421846850,-10220.96164633,0.00022,2]
[365041870,1749421846860,-5364.40417707,0.00022,2]
[365041872,1749421846870,-419.27,0.000221,7]
[365041874,1749421846879,-440.0,0.00022191,4]
[365041876,1749421846889,-726.96,0.00022191,4]
[365041878,1749421846898,-1400.83,0.00022191,4]
[365041880,1749421846908,-440.0,0.00022191,4]
[365041882,1749421846918,-591.34,0.00022191,4]
[365041884,1749421846928,-972.03,0.00022191,4]
[365041886,1749421846938,-440.0,0.00022191,4]
[365041888,1749421846947,-676.67,0.00022191,4]
[365041890,1749421846958,-928.14,0.00022191,4]
[365041892,1749421846967,-440.0,0.00022191,4]
[365041894,1749421846977,-1055.9,0.00022191,4]
[365041896,1749421846987,-921.11,0.00022191,4]
[365041898,1749421846996,-440.0,0.00022191,4]
[365041900,1749421847006,-1549.85,0.00022191,4]
[365041902,1749421847016,-652.19,0.00022191,4]
[365041904,1749421847025,-580.9,0.00022191,4]
[365041906,1749421847034,-440.0,0.00022191,4]
[365041908,1749421847044,-1359.84,0.00022191,4]
[365041910,1749421847054,-440.0,0.00022191,4]
[365041912,1749421847064,-609.24,0.00022191,4]
[365041914,1749421847074,-747.48,0.00022191,4]
[365041916,1749421847084,-49456.79,0.000222,2]
[365041918,1749421847094,-1208.55,0.00022206,2]
[365041920,1749421847103,-1000.0,0.00022298,2]
[365041922,1749421847112,-983.61,0.000224,7]
[365041924,1749421847122,-400.0,0.00022465,2]
[365041926,1749421847131,-400.0,0.00022465,2]
[365041928,1749421847140,-400.0,0.00022465,2]
[365041930,1749421847150,-400.0,0.00022465,2]
[365041932,1749421847160,-400.0,0.00022465,2]
[365041934,1749421847170,-400.0,0.00022465,2]
[365041936,1749421847180,-400.0,0.00022465,2]
[365041938,1749421847189,-400.0,0.00022465,2]
[365041940,1749421847199,-400.0,0.00022465,2]
[365041942,1749421847209,-400.0,0.00022465,2]
[365041944,1749421847218,-400.0,0.00022465,2]
[365041946,1749421847228,-371.26,0.00022465,2]
[365041948,1749421847238,-726.96,0.00022465,4]
[365041950,1749421847248,-1400.83,0.00022465,4]
[365041952,1749421847259,-513.95,0.00022465,4]
[365041954,1749421847269,-591.34,0.00022465,4]
[365041956,1749421847279,-972.03,0.00022465,4]
[365041958,1749421847289,-440.0,0.00022465,4]
[365041960,1749421847300,-676.67,0.00022465,4]
[365041961,1749421847311,-928.14,0.00022465,4]
[365041962,1749421847320,-575.79724221,0.00022465,4]
[365041963,1749421847330,-1055.9,0.00022465,4]
[365041964,1749421847344,-921.11,0.00022465,4]
[365041965,1749421847354,-440.0,0.00022465,4]
[365041966,1749421847364,-1549.85,0.00022465,4]
[365041967,1749421847374,-652.19,0.00022465,4]
[365041968,1749421847385,-580.9,0.00022465,4]
[365041969,1749421847395,-397.56,0.00022465,4]
[365041970,1749421847404,-1359.84,0.00022465,4]
[365041971,1749421847415,-440.0,0.00022465,4]
[365041972,1749421847427,-609.24,0.00022465,4]
[365041973,1749421847438,-747.48,0.00022465,4]
[365041974,1749421847449,-46113.16147913,0.000226,7]
[365041975,1749421847459,-215.0738,0.00022719,2]
[365041976,1749421847468,-726.96,0.00022739,4]
[365041977,1749421847478,-1400.83,0.00022739,4]
[365041978,1749421847488,-591.34,0.00022739,4]
[365041979,1749421847498,-972.03,0.00022739,4]
[365041980,1749421847508,-440.0,0.00022739,4]
[365041981,1749421847518,-676.67,0.00022739,4]
[365041982,1749421847527,-928.14,0.00022739,4]
[365041983,1749421847537,-1055.9,0.00022739,4]
[365041984,1749421847548,-921.11,0.00022739,4]
[365041985,1749421847557,-440.0,0.00022739,4]
[365041986,1749421847566,-1549.85,0.00022739,4]
[365041987,1749421847576,-652.19,0.00022739,4]
[365041988,1749421847586,-580.9,0.00022739,4]
[365041989,1749421847595,-1359.84,0.00022739,4]
[365041990,1749421847615,-440.0,0.00022739,4]
[365041991,1749421847625,-609.24,0.00022739,4]
[365041992,1749421847635,-747.48,0.00022739,4]
[365041993,1749421847644,-587.0,0.00022769,2]
[365041994,1749421847654,-587.0,0.00022769,2]
[365041995,1749421847663,-1500.0,0.00022846,2]
[365041996,1749421847673,-900.0,0.00022957,2]
[365041997,1749421847682,-67310.12554045,0.00023,2]
[365041998,1749421847692,-623.95390499,0.00023,2]
[365041999,1749421847702,-7558.46582254,0.00023,2]
[365042000,1749421847712,-2142.65736396,0.00023,30]
[365042001,1749421847722,-1327.91459964,0.00023,2]
[365042002,1749421847731,-726.96,0.00023013,4]
[365042003,1749421847741,-1400.83,0.00023013,4]
[365042004,1749421847750,-591.34,0.00023013,4]
[365042005,1749421847760,-972.03,0.00023013,4]
[365042006,1749421847770,-440.0,0.00023013,4]
[365042007,1749421847779,-676.67,0.00023013,4]
[365042008,1749421847789,-928.14,0.00023013,4]
[365042009,1749421847800,-1055.9,0.00023013,4]
[365042010,1749421847809,-921.11,0.00023013,4]
[365042011,1749421847819,-440.0,0.00023013,4]
[365042012,1749421847829,-1549.85,0.00023013,4]
[365042013,1749421847838,-652.19,0.00023013,4]
[365042014,1749421847848,-580.9,0.00023013,4]
[365042015,1749421847858,-1359.84,0.00023013,4]
[365042016,1749421847869,-440.0,0.00023013,4]
[365042017,1749421847878,-609.24,0.00023013,4]
[365042018,1749421847888,-747.48,0.00023013,4]
[365042019,1749421847898,-1381.2,0.00023028,2]
[365042020,1749421847907,-2638.37,0.00023062,3]
[365042021,1749421847916,-229.60437222,0.00023062,3]
[365042022,1749421847926,-600.0,0.00023073,2]
[365042023,1749421847935,-500.0,0.00023073,2]
[365042024,1749421847945,-500.0,0.00023073,2]
[365042025,1749421847955,-500.0,0.00023073,2]
[365042026,1749421847964,-1532.840806,0.00023089,3]
[365042027,1749421847974,-188103.36361804,0.00023098,2]
[365042028,1749421847983,-151.0,0.00023098,7]
[365042029,1749421847993,-151.760305,0.00023098,7]
[365042030,1749421848003,-151.0,0.00023098,7]
[365042031,1749421848012,-151.0,0.00023098,7]
[365042032,1749421848022,-151.0,0.00023098,7]
[365042033,1749421848032,-66529.22,0.000231,7]
[365042034,1749421848042,-175.42617099,0.00023124,2]
[365042035,1749421848052,-2159.0,0.00023234,2]
[365042036,1749421848062,-652.0,0.00023234,2]
[365042037,1749421848072,-405.0,0.00023234,2]
[365042038,1749421848082,-963.0,0.00023234,2]
[365042039,1749421848092,-6000.0,0.00023286,3]
[365042040,1749421848102,-726.96,0.00023287,4]
[365042041,1749421848112,-1400.83,0.00023287,4]
[365042042,1749421848122,-591.34,0.00023287,4]
[365042043,1749421848133,-972.03,0.00023287,4]
[365042044,1749421848143,-440.0,0.00023287,4]
[365042045,1749421848154,-676.67,0.00023287,4]
[365042046,1749421848164,-928.14,0.00023287,4]
[365042047,1749421848174,-1055.9,0.00023287,4]
[365042048,1749421848185,-921.11,0.00023287,4]
[365042049,1749421848195,-440.0,0.00023287,4]
[365042050,1749421848205,-1549.85,0.00023287,4]
[365042051,1749421848215,-652.19,0.00023287,4]
[365042052,1749421848225,-580.9,0.00023287,4]
[365042053,1749421848235,-1359.84,0.00023287,4]
[365042054,1749421848245,-440.0,0.00023287,4]
[365042055,1749421848255,-609.24,0.00023287,4]
[365042056,1749421848265,-747.48,0.00023287,4]
[365042057,1749421848275,-842.5625,0.0002329,3]
[365042058,1749421848284,-419.27,0.000233,7]
[365042059,1749421848294,-49456.79,0.000233,2]
[365042060,1749421848304,-1000.0,0.000233,2]
[365042061,1749421848314,-158474.89910748,0.000233,2]
[365042062,1749421848325,-151.0,0.000233,7]
[365042063,1749421848335,-151.0,0.000233,7]
[365042064,1749421848349,-157.68799,0.000233,7]
[365042065,1749421848359,-151.0,0.000233,7]
[365042066,1749421848369,-501.51409749,0.000233,9]
[365042067,1749421848380,-502.54998049,0.000233,9]
[365042068,1749421848391,-6000.0,0.00023342,3]
[365042069,1749421848400,-151.0,0.00023342,7]
[365042070,1749421848410,-160.02432,0.00023342,7]
[365042071,1749421848422,-151.0,0.00023342,7]
[365042072,1749421848432,-151.0,0.00023342,7]
[365042073,1749421848442,-204.829684,0.00023342,7]
[365042074,1749421848452,-204.829684,0.00023342,7]
[365042075,1749421848462,-498.56595591,0.00023394,2]
[365042076,1749421848472,-163.35411962,0.00023397,2]
[365042077,1749421848482,-1446.95699465,0.0002346,2]
[365042078,1749421848493,-47469.57400398,0.000235,2]
[365042079,1749421848503,-382.66831011,0.000235,2]
[365042080,1749421848513,-44929.33401829,0.00023547,2]
[365042081,1749421848523,-500.0,0.0002356,2]
[365042082,1749421848533,-500.0,0.0002356,2]
[365042083,1749421848543,-726.96,0.00023561,4]
[365042084,1749421848554,-1400.83,0.00023561,4]
[365042085,1749421848565,-591.34,0.00023561,4]
[365042086,1749421848575,-972.03,0.00023561,4]